bitfinex/quotes_ETHUSD_20240917
["timestamp","ask_amount","ask_price","bid_price","bid_amount"]
[1726571309685,4.30921,2320.7,2320.4,9.7281]
[1726571309879,4.30941,2320.5,2320.4,9.7281]
[1726571310078,8.72656303,2320.5,2320.4,9.7648128]
[1726571310278,4.30941,2320.5,2320.4,9.7648128]
[1726571310699,4.85941,2320.5,2320.4,9.7648128]
[1726571312483,4.30932,2320.6,2320.4,9.7648128]
[1726571312883,4.30902,2320.8,2320.4,9.7648128]
[1726571313094,4.30902,2320.8,2320.4,14.0743528]
[1726571313310,4.30902,2320.8,2320.5,9.2581]
[1726571313627,7.41648422,2320.9,2320.6,9.2581]
[1726571314089,4.30844,2321.1,2320.6,13.6040028]
[1726571314293,4.3086,2321.0,2320.7,9.2054]
[1726571314492,4.41632504,2321.0,2320.7,9.2054]
[1726571314693,4.30875,2320.9,2320.7,9.2054]
[1726571315532,4.30885,2320.8,2320.7,9.2054]
[1726571315731,8.6177,2320.8,2320.7,9.2054]
[1726571315914,10.02947,2320.8,2320.7,9.2054]
[1726571316238,9.16808,2320.7,2320.6,0.0367128]
[1726571317234,12.16808,2320.7,2320.6,0.0367128]
[1726571318940,3.55,2320.7,2320.6,0.0367128]
[1726571319154,8.61759,2320.9,2320.6,9.3856128]
[1726571319358,4.30879,2320.9,2320.6,9.3856128]
[1726571319522,4.3089,2320.8,2320.6,9.3856128]
[1726571319708,4.30879,2320.9,2320.6,9.3856128]
[1726571320044,4.30876,2320.9,2320.6,9.3856128]
[1726571320436,8.72530232,2320.9,2320.6,9.3856128]
[1726571320607,8.61757,2320.9,2320.6,9.3856128]
[1726571321047,4.41667229,2320.8,2320.6,9.3856128]
[1726571321244,0.10773227,2320.7,2320.6,9.3856128]
[1726571321451,4.41677227,2320.7,2320.6,9.3856128]
[1726571322159,8.61808,2320.7,2320.6,9.3856128]
[1726571322658,4.30904,2320.7,2320.6,9.3856128]
[1726571323013,8.61782,2320.8,2320.6,9.3856128]
[1726571323365,4.30887,2320.8,2320.6,9.3856128]
[1726571323726,3.65773354,2320.9,2320.6,9.3856128]
[1726571323965,7.85875,2320.9,2320.6,9.3856128]
[1726571324178,7.96648354,2320.9,2320.6,9.3856128]
[1726571324839,4.30904,2320.7,2320.6,9.3856128]
[1726571325066,4.41677489,2320.7,2320.6,9.3856128]
[1726571326259,4.30886,2320.8,2320.6,9.3856128]
[1726571326764,11.77822,2321.2,2320.7,9.166]
[1726571326934,3.0,2321.1,2320.9,9.166]
[1726571327820,2.25357346,2321.5,2320.8,9.8688]
[1726571327821,6.56128346,2321.5,2320.8,9.8688]
[1726571328146,0.45079016,2321.6,2321.2,14.17681]
[1726571328349,4.41495786,2321.7,2321.3,14.17664]
[1726571328558,8.72228786,2321.7,2321.3,9.8688]
[1726571328768,8.72224786,2321.7,2321.3,9.8688]
[1726571329056,4.41495786,2321.7,2321.3,9.8688]
[1726571329261,4.30745,2321.6,2321.3,9.8688]
[1726571329556,3.0,2321.5,2321.3,9.8688]
[1726571329962,4.41543794,2321.4,2321.3,9.8688]
[1726571330273,0.10769794,2321.4,2321.3,9.8688]
[1726571330617,4.41543794,2321.4,2321.3,9.8688]
[1726571331530,0.10769794,2321.4,2321.3,9.8688]
[1726571332029,4.41543794,2321.4,2321.3,9.8688]
[1726571332233,4.30807,2321.3,2320.9,9.4493]
[1726571332442,0.10770935,2321.2,2320.9,9.4493]
[1726571333128,4.30831,2321.1,2320.9,9.4493]
[1726571333336,0.10770935,2321.2,2320.9,9.4493]
[1726571333337,4.41593836,2321.2,2320.9,9.4493]
[1726571335623,4.30832,2321.1,2320.9,9.4493]
[1726571335854,4.41603705,2321.1,2320.9,9.4493]
[1726571337424,4.30814,2321.2,2320.9,9.4493]
[1726571337831,8.61635,2321.2,2320.9,9.4493]
[1726571338190,4.30812,2321.2,2320.9,9.4493]
[1726571340191,8.61696,2321.0,2320.9,9.4493]
[1726571340391,4.30831,2321.1,2320.9,9.4493]
[1726571340872,4.30848,2321.0,2320.9,9.4493]
[1726571343163,8.61678,2321.1,2320.9,9.4493]
[1726571343512,4.30848,2321.0,2320.9,9.4493]
[1726571344105,5.224775,2321.2,2320.9,9.4493]
[1726571344106,7.3083,2321.1,2320.9,9.4493]
[1726571349520,0.10771647,2321.0,2320.6,9.9538128]
[1726571349742,4.30898,2320.8,2320.6,9.9538128]
[1726571350067,4.41670666,2320.8,2320.6,9.9538128]
[1726571350216,4.30904,2320.7,2320.6,9.9538128]
[1726571350648,8.72581254,2320.7,2320.6,0.0367128]
[1726571350860,9.59839379,2320.7,2320.6,0.0367128]
[1726571352259,10.14839379,2320.7,2320.6,0.0367128]
[1726571352825,5.83935379,2320.7,2320.6,0.0367128]
[1726571353120,4.30904,2320.7,2320.6,9.8790128]
[1726571353342,4.30904,2320.7,2320.6,0.0367128]
[1726571353587,8.72581802,2320.7,2320.6,0.0367128]
[1726571354797,9.27581802,2320.7,2320.6,0.0367128]
[1726571354980,10.63426782,2320.7,2320.6,0.0367128]
[1726571361597,4.85904,2320.7,2320.6,0.0367128]
[1726571361933,5.99137715,2321.1,2320.7,9.5683]
[1726571361934,4.30877,2320.9,2320.7,9.5683]
[1726571362156,4.30904,2320.7,2320.6,0.0367128]
[1726571362702,5.17084,2320.7,2320.6,0.0367128]
[1726571363001,8.61808,2320.7,2320.6,0.0367128]
[1726571363212,9.16808,2320.7,2320.6,0.0367128]
[1726571366858,29.07530496,2320.7,2320.6,0.0367128]
[1726571367149,33.38434496,2320.7,2320.6,0.0367128]
[1726571367665,33.38434496,2320.7,2319.7,9.5599]
[1726571367666,4.31068,2319.9,2319.7,9.5599]
[1726571367962,4.41847823,2319.8,2319.7,9.6204688]
[1726571368140,4.31071,2319.8,2319.7,0.0605688]
[1726571368349,4.31056,2319.9,2319.7,0.0605688]
[1726571368507,4.31071,2319.8,2319.5,9.5599]
[1726571368809,4.31071,2319.8,2319.5,9.658806]
[1726571369018,4.31102,2319.7,2319.5,9.658806]
[1726571370261,4.31108,2319.6,2319.5,9.658806]
[1726571370927,13.14215175,2319.6,2319.5,0.098906]
[1726571371126,12.27994175,2319.6,2319.5,0.098906]
[1726571371452,16.59102175,2319.6,2319.5,0.098906]
[1726571372030,26.42102175,2319.6,2319.5,0.098906]
[1726571372228,29.49419593,2319.6,2319.5,0.098906]
[1726571373866,12.17216,2319.6,2319.5,0.098906]
[1726571374031,4.31092,2319.7,2319.5,0.098906]
[1726571374360,4.31108,2319.6,2319.5,0.098906]
[1726571376458,4.3109,2319.7,2319.5,0.098906]
[1726571376755,8.62192,2319.7,2319.5,0.098906]
[1726571376929,8.62191,2319.7,2319.5,0.098906]
[1726571377710,4.31108,2319.6,2319.5,0.098906]
[1726571379458,4.3109,2319.7,2319.5,0.098906]
[1726571379762,8.62193,2319.7,2319.5,0.098906]
[1726571379914,8.62188,2319.7,2319.5,0.098906]
[1726571382236,4.31097,2319.7,2319.5,0.098906]
[1726571382619,3.0,2319.9,2319.6,9.5602]
[1726571382822,4.3102,2320.1,2319.6,17.21484496]
[1726571383060,7.47,2320.2,2319.9,4.31051]
[1726571383233,7.47,2320.2,2320.0,9.5602]
[1726571383768,13.78038887,2320.7,2320.3,9.5602]
[1726571383769,4.76000887,2320.7,2320.3,9.5602]
[1726571383937,4.30934,2320.6,2320.3,9.5602]
[1726571384834,4.30944,2320.5,2320.3,9.5602]
[1726571385040,4.30934,2320.6,2320.3,9.5602]
[1726571385450,4.30951,2320.5,2320.3,9.5602]
[1726571385781,4.30934,2320.6,2320.3,9.5602]
[1726571385782,4.3094,2320.6,2320.3,9.5602]
[1726571385979,4.30942,2320.5,2320.3,9.5602]
[1726571388985,4.3096,2320.4,2320.3,9.5602]
[1726571390656,4.30942,2320.5,2320.3,9.5602]
[1726571391743,0.73083,2321.1,2320.3,13.86994]
[1726571391744,4.30863,2321.0,2320.3,13.86994]
[1726571391940,4.30902,2320.8,2320.5,9.2612]
[1726571392584,3.0,2320.9,2320.5,13.5706]
[1726571392784,3.0,2320.9,2320.6,4.30922]
[1726571392989,4.30878,2320.9,2320.5,17.9021716]
[1726571393150,4.30878,2320.9,2320.5,13.5927716]
[1726571393574,4.30858,2321.0,2320.5,13.5927216]
[1726571393759,4.30868,2320.9,2320.5,13.5928116]
[1726571393972,4.30889,2320.8,2320.5,9.2834316]
[1726571394178,4.30904,2320.7,2320.5,9.2834316]
[1726571394550,4.30904,2320.7,2320.5,0.0222316]
[1726571395604,4.30923,2320.6,2320.5,0.0222316]
[1726571396188,4.30908,2320.7,2320.5,0.0222316]
[1726571397604,4.30887,2320.8,2320.5,0.0222316]
[1726571398656,4.30907,2320.7,2320.5,0.0222316]
[1726571401464,8.61846,2320.6,2320.5,0.0222316]
[1726571402490,9.16846,2320.6,2320.5,0.0222316]
[1726571403263,19.82137496,2320.6,2320.5,0.0222316]
[1726571404464,16.47769,2320.6,2320.5,0.0222316]
[1726571404669,26.37719,2320.6,2320.5,0.0222316]
[1726571404902,29.8663649,2320.6,2320.5,0.0222316]
[1726571405318,37.51927986,2320.6,2320.5,0.0222316]
[1726571405609,39.32385243,2320.6,2320.5,0.0222316]
[1726571406010,39.32350888,2320.6,2320.5,0.0222316]
[1726571407006,39.77418311,2320.6,2320.5,0.0222316]
[1726571407507,44.08341311,2320.6,2320.5,0.0222316]
[1726571407695,44.53435606,2320.6,2320.5,0.0222316]
[1726571408011,44.08366984,2320.6,2320.5,0.0222316]
[1726571408171,44.53435606,2320.6,2320.5,0.0222316]
[1726571409090,44.53490844,2320.6,2320.5,0.0222316]
[1726571409775,42.27945281,2320.6,2320.5,0.0222316]
[1726571409975,44.08386326,2320.6,2320.5,0.0222316]
[1726571410304,44.53490844,2320.6,2320.5,0.0222316]
[1726571411084,42.27945281,2320.6,2320.5,0.0222316]
[1726571411401,36.88199348,2320.6,2320.5,0.0222316]
[1726571411717,39.77497262,2320.6,2320.5,0.0222316]
[1726571411917,37.97022281,2320.6,2320.5,0.0222316]
[1726571413311,33.11099281,2320.6,2320.5,0.0222316]
[1726571413811,29.76730785,2320.6,2320.5,0.0222316]
[1726571414019,19.86780785,2320.6,2320.5,0.0222316]
[1726571414174,9.06940295,2320.6,2320.5,0.0222316]
[1726571414527,9.06940295,2320.6,2320.5,9.5806316]
[1726571414824,8.61846,2320.6,2320.5,9.5806316]
[1726571415516,4.30907,2320.7,2320.5,9.5806316]
[1726571416117,4.30923,2320.6,2320.5,9.5806316]
[1726571416318,8.61846,2320.6,2320.5,9.5806316]
[1726571417391,8.61846,2320.6,2320.5,0.0222316]
[1726571417610,10.030306,2320.6,2320.5,0.0222316]
[1726571417780,9.16846,2320.6,2320.5,0.0222316]
[1726571421112,12.16846,2320.6,2320.5,0.0222316]
[1726571421619,11.61846,2320.6,2320.5,0.0222316]
[1726571423404,7.30923,2320.6,2320.5,0.0222316]
[1726571423935,4.30923,2320.6,2320.5,0.0222316]
[1726571425544,8.72619164,2320.6,2320.5,0.0222316]
[1726571425848,12.5988108,2320.6,2320.5,0.0222316]
[1726571426147,22.3547108,2320.6,2320.5,0.0222316]
[1726571426355,22.24697916,2320.6,2320.5,0.0222316]
[1726571426510,22.79697916,2320.6,2320.5,0.0222316]
[1726571426854,27.10620916,2320.6,2320.5,0.0222316]
[1726571428636,32.25464393,2320.6,2320.5,0.0222316]
[1726571429343,32.71051462,2320.6,2320.5,0.0222316]
[1726571437716,29.36682966,2320.6,2320.5,0.0222316]
[1726571438093,29.36683837,2320.6,2320.5,0.0222316]
[1726571443020,29.36783516,2320.6,2320.5,0.0222316]
[1726571443377,30.44989412,2320.6,2320.5,0.0222316]
[1726571445534,34.75912412,2320.6,2320.5,0.0222316]
[1726571446403,37.47307532,2320.6,2320.5,0.0222316]
[1726571447824,37.47425233,2320.6,2320.5,0.0222316]
[1726571450901,30.44989412,2320.6,2320.5,0.0222316]
[1726571451141,34.75912412,2320.6,2320.5,0.0222316]
[1726571452048,30.44989412,2320.6,2320.5,0.0222316]
[1726571452247,34.75912412,2320.6,2320.5,0.0222316]
[1726571452444,30.44989412,2320.6,2320.5,0.0222316]
[1726571452671,18.74018495,2320.6,2320.5,0.0222316]
[1726571453174,16.47769,2320.6,2320.5,0.0222316]
[1726571460480,18.74114573,2320.6,2320.5,0.0222316]
[1726571460711,16.47769,2320.6,2320.5,0.0222316]
[1726571467144,16.47769,2320.6,2320.5,9.6912316]
[1726571467145,2.2644818,2320.6,2320.5,9.6912316]
[1726571467312,1.81152305,2320.8,2320.6,9.669]
[1726571467510,2.2644818,2320.9,2320.6,9.669]
[1726571467511,1.81152305,2320.9,2320.7,9.669]
[1726571467815,6.5730018,2321.0,2320.7,9.669]
[1726571467816,4.30852,2321.0,2320.7,9.669]
[1726571468016,4.30868,2320.9,2320.7,9.669]
[1726571468738,4.30868,2320.9,2320.7,9.6912316]
[1726571469345,6.11982305,2321.1,2320.7,9.6912316]
[1726571469346,3.0,2321.0,2320.7,9.6912316]
[1726571469546,7.30858,2321.0,2320.7,9.6912316]
[1726571470427,4.30858,2321.0,2320.7,9.6912316]
[1726571471721,4.30879,2320.9,2320.7,9.6912316]
[1726571472969,4.30851,2321.0,2320.7,9.6912316]
[1726571473675,8.61709,2321.0,2320.7,9.6912316]
[1726571473882,4.30851,2321.0,2320.7,9.6912316]
[1726571474550,7.30833,2321.1,2320.7,14.0002116]
[1726571474758,7.30833,2321.1,2320.8,9.5401]
[1726571475616,7.30833,2321.1,2320.8,9.5623316]
[1726571475892,3.0,2321.1,2320.8,4.3310716]
[1726571476046,4.30821,2321.2,2320.9,9.3747]
[1726571476254,1.81152305,2321.3,2321.0,4.30846]
[1726571476457,1.81152305,2321.3,2321.0,9.808]
[1726571476774,1.81152305,2321.3,2321.1,9.808]
[1726571477780,1.81152305,2321.3,2321.2,9.0585]
[1726571479196,1.81152305,2321.3,2321.2,12.73453007]
[1726571479690,1.81152305,2321.3,2321.2,21.35075007]
[1726571484803,1.81152305,2321.3,2321.2,25.65886007]
[1726571485026,1.81152305,2321.3,2321.2,28.65886007]
[1726571486771,4.30653,2322.1,2321.7,9.7364]
[1726571487851,4.30634,2322.2,2321.9,9.7364]
[1726571488361,7.30609,2322.3,2321.9,9.7364]
[1726571489515,4.30629,2322.2,2321.9,9.7364]
[1726571493784,8.61266,2322.2,2321.9,9.7364]
[1726571494858,4.30645,2322.1,2321.9,9.7364]
[1726571495069,4.30626,2322.2,2321.9,9.7364]
[1726571495284,3.0,2322.6,2321.9,9.7364]
[1726571495441,8.61311,2322.1,2321.9,9.7364]
[1726571495644,4.30663,2322.0,2321.9,9.7364]
[1726571495849,8.61326,2322.0,2321.9,9.7364]
[1726571496162,4.30663,2322.0,2321.9,9.7364]
[1726571497377,4.30695,2321.9,2321.6,9.1934]
[1726571497588,4.30718,2321.8,2321.6,9.1934]
[1726571497883,4.30718,2321.7,2321.6,9.1934]
[1726571498169,4.30718,2321.8,2321.6,9.1934]
[1726571498531,8.61431,2321.8,2321.6,9.1934]
[1726571498835,4.30713,2321.8,2321.6,9.1934]
[1726571502300,4.30713,2321.8,2321.6,9.1934]
[1726571503070,4.30683,2321.9,2321.6,9.1934]
[1726571503471,4.30683,2321.9,2321.6,12.53773007]
[1726571503709,4.30683,2321.9,2321.6,16.84508007]
[1726571503859,4.30683,2321.9,2321.6,12.53773007]
[1726571504064,7.30644,2322.1,2321.6,16.84509007]
[1726571504065,4.30667,2322.0,2321.6,16.84509007]
[1726571504307,8.61347,2322.0,2321.6,16.84509007]
[1726571504668,4.30667,2322.0,2321.6,16.84509007]
[1726571504880,4.30683,2321.9,2321.6,16.84509007]
[1726571505205,4.30665,2322.0,2321.6,13.50076]
[1726571505799,8.61345,2322.0,2321.6,13.50076]
[1726571505982,4.30665,2322.0,2321.6,13.50076]
[1726571506431,8.6134,2322.0,2321.6,13.50076]
[1726571506609,4.30665,2322.0,2321.6,13.50076]
[1726571507276,4.30683,2321.9,2321.6,9.1934]
[1726571507609,7.30645,2322.1,2321.6,9.1934]
[1726571508898,4.30689,2321.9,2321.6,9.1934]
[1726571509432,5.065373,2322.1,2321.6,9.1934]
[1726571509433,4.30704,2321.8,2321.6,9.1934]
[1726571509588,4.30686,2321.9,2321.6,9.1934]
[1726571510521,8.61385,2321.9,2321.6,9.1934]
[1726571510836,4.30711,2321.8,2321.6,9.1934]
[1726571510983,4.30711,2321.8,2321.1,13.76028]
[1726571510984,4.30753,2321.6,2321.1,13.76028]
[1726571511386,4.3077,2321.5,2321.1,9.452]
[1726571512030,9.2833,2321.6,2321.1,9.452]
[1726571512238,4.30783,2321.4,2320.9,14.00585]
[1726571512386,4.30801,2321.3,2320.9,9.6972]
[1726571513011,4.30775,2321.4,2320.9,14.00586]
[1726571513212,4.30799,2321.3,2320.9,9.6972]
[1726571513425,4.3082,2321.2,2320.9,9.6972]
[1726571513590,13.5984,2321.2,2320.9,9.6972]
[1726571514624,13.59796,2321.4,2320.9,17.34977119]
[1726571515748,13.59796,2321.4,2320.9,13.04114119]
[1726571517203,4.30794,2321.3,2320.9,9.6972]
[1726571517399,4.30816,2321.2,2320.9,9.6972]
[1726571517605,4.30794,2321.3,2320.9,9.6972]
[1726571520431,8.61599,2321.3,2320.9,9.6972]
[1726571520798,4.30821,2321.2,2320.9,9.6972]
[1726571521745,4.30804,2321.3,2320.9,9.6972]
[1726571522041,4.30822,2321.2,2320.9,9.6972]
[1726571522802,7.30767,2321.5,2321.1,4.30824]
[1726571523147,4.30747,2321.6,2321.3,9.9751]
[1726571523348,4.30766,2321.5,2321.3,9.9751]
[1726571523645,12.6515,2321.8,2321.1,9.9751]
[1726571523646,16.95868,2321.8,2321.1,9.9751]
[1726571523813,4.30788,2321.4,2320.9,14.28365]
[1726571524013,4.30749,2321.6,2321.0,4.30848]
[1726571524242,4.30776,2321.4,2321.0,4.30848]
[1726571524650,4.3076,2321.5,2321.1,4.30829]
[1726571524816,4.3076,2321.5,2321.2,9.9751]
[1726571525711,4.30774,2321.4,2321.2,9.9751]
[1726571527853,4.30742,2321.6,2321.2,17.62706119]
[1726571527855,4.30744,2321.6,2321.2,17.62706119]
[1726571528223,7.30717,2321.8,2321.2,17.62702119]
[1726571528422,4.30722,2321.7,2321.3,8.61561]
[1726571528755,4.30722,2321.7,2321.3,4.30778]
[1726571529708,8.61449,2321.7,2321.3,4.30778]
[1726571529909,4.30719,2321.7,2321.2,9.9751]
[1726571530221,4.30756,2321.5,2321.2,9.9751]
[1726571530421,4.30754,2321.6,2321.2,14.28321]
[1726571536518,4.30754,2321.6,2321.3,4.30792]
[1726571536738,4.30751,2321.6,2321.2,14.28321]
[1726571537413,4.30767,2321.5,2321.2,9.9751]
[1726571537652,14.04687,2321.5,2321.1,4.30822]
[1726571537886,4.30781,2321.4,2321.0,13.42168]
[1726571538379,4.30794,2321.3,2321.0,9.1132]
[1726571538685,4.30781,2321.4,2321.0,9.1132]
[1726571538686,4.30775,2321.4,2321.0,9.1132]
[1726571538852,4.30799,2321.3,2321.0,9.1132]
[1726571539063,4.30812,2321.2,2321.0,9.1132]
[1726571539758,13.3283,2321.1,2320.8,0.0222316]
[1726571540095,4.30859,2321.0,2320.8,0.0222316]
[1726571540642,4.30867,2320.9,2320.8,0.0222316]
[1726571541885,20.82424,2320.9,2320.8,0.0222316]
[1726571543289,21.37424,2320.9,2320.8,0.0222316]
[1726571543592,23.942528,2320.9,2320.8,0.0222316]
[1726571546145,28.251198,2320.9,2320.8,0.0222316]
[1726571556406,35.90456535,2320.9,2320.8,0.0222316]
[1726571556709,37.7160884,2320.9,2320.8,0.0222316]
[1726571557600,35.90456535,2320.9,2320.8,0.0222316]
[1726571558474,37.7160884,2320.9,2320.8,0.0222316]
[1726571559104,35.90456535,2320.9,2320.8,0.0222316]
[1726571560023,34.10472339,2320.9,2320.8,0.0222316]
[1726571560622,40.67016922,2320.9,2320.8,0.0222316]
[1726571560841,38.41339339,2320.9,2320.8,0.0222316]
[1726571560981,28.00989539,2320.3,2320.2,0.0383372]
[1726571561188,32.31967539,2320.3,2320.2,0.0383372]
[1726571562010,34.12280397,2320.3,2320.2,0.0383372]
[1726571564585,26.46504,2320.3,2320.2,0.0383372]
[1726571565113,29.81302397,2320.3,2320.2,0.0383372]
[1726571565290,33.22526837,2320.3,2320.2,0.0383372]
[1726571566831,29.8772844,2320.3,2320.2,0.0383372]
[1726571567267,11.61956,2320.3,2320.2,0.0383372]
[1726571568728,12.16956,2320.3,2320.2,0.0383372]
[1726571569237,16.47934,2320.3,2320.2,0.0383372]
[1726571572843,12.16956,2320.3,2320.2,0.0383372]
[1726571573050,0.45100466,2320.8,2320.2,9.5738372]
[1726571573199,4.30923,2320.6,2320.2,12.92182117]
[1726571573398,0.45100466,2320.8,2320.2,12.92182117]
[1726571573399,4.30886,2320.8,2320.3,13.97998]
[1726571573603,7.47,2321.1,2320.7,9.6702]
[1726571573604,4.3084,2321.1,2320.7,9.6702]
[1726571573826,4.30795,2321.3,2320.7,9.6702]
[1726571574037,4.30788,2321.4,2320.9,4.30866]
[1726571574277,4.30772,2321.5,2321.0,9.3705]
[1726571574522,4.30724,2321.7,2321.1,13.63696]
[1726571574707,4.30724,2321.7,2321.2,9.3287]
[1726571574960,4.30724,2321.7,2321.3,9.3287]
[1726571575974,7.30747,2321.6,2321.3,9.3287]
[1726571576171,4.30774,2321.4,2321.3,9.3287]
[1726571577666,4.30808,2321.3,2320.8,9.9231]
[1726571577883,8.61674,2321.1,2320.8,9.9231]
[1726571578163,8.61676,2321.1,2320.8,9.9231]
[1726571578767,4.30848,2321.0,2320.8,9.9231]
[1726571579264,8.61678,2321.1,2320.8,9.9231]
[1726571579435,4.30867,2320.9,2320.8,9.9231]
[1726571580665,8.61682,2321.1,2320.8,9.9231]
[1726571580860,4.30851,2321.0,2320.8,9.9231]
[1726571583077,8.61709,2321.0,2320.8,9.9231]
[1726571583293,4.30851,2321.0,2320.8,9.9231]
[1726571583787,4.30867,2320.9,2320.8,9.9231]
[1726571583971,8.61734,2320.9,2320.8,9.9231]
[1726571584275,8.61734,2320.9,2320.3,4.30965]
[1726571584276,4.30867,2320.9,2320.4,9.1544]
[1726571584983,4.30905,2320.7,2320.4,9.1544]
[1726571585481,4.30888,2320.8,2320.4,9.1544]
[1726571589683,4.30909,2320.7,2320.4,9.1544]
[1726571590894,4.30978,2320.3,2320.2,0.0383372]
[1726571591041,4.3097,2320.4,2320.2,0.0383372]
[1726571591042,3.0,2320.4,2320.2,0.0383372]
[1726571591245,3.0,2320.7,2320.3,9.5999]
[1726571591491,7.30861,2321.0,2320.6,9.5999]
[1726571591794,4.30896,2320.8,2320.6,9.5999]
[1726571591945,4.30904,2320.7,2320.6,9.5999]
[1726571592357,4.3089,2320.8,2320.6,9.5999]
[1726571593366,8.61785,2320.8,2320.6,9.5999]
[1726571595386,4.30904,2320.7,2320.6,9.5999]
[1726571601692,8.61785,2320.8,2320.6,9.5999]
[1726571601909,4.3089,2320.8,2320.6,9.5999]
[1726571602568,8.61786,2320.8,2320.6,9.5999]
[1726571605911,4.30904,2320.7,2320.6,9.5999]
[1726571607285,7.3083,2321.1,2320.3,4.30973]
[1726571607286,4.30937,2320.6,2320.3,9.9859]
[1726571607474,4.30913,2320.7,2320.3,9.9859]
[1726571607812,4.30913,2320.7,2320.2,0.0383372]
[1726571607813,8.61952,2320.4,2320.2,0.0383372]
[1726571608109,4.30974,2320.4,2320.2,0.0383372]
[1726571608615,8.61943,2320.4,2320.2,0.0383372]
[1726571608915,4.30969,2320.4,2320.2,0.0383372]
[1726571609074,4.30978,2320.3,2320.2,0.0383372]
[1726571610369,4.30969,2320.4,2320.2,0.0383372]
[1726571611099,8.61941,2320.4,2320.2,0.0383372]
[1726571611302,8.61956,2320.3,2320.2,0.0383372]
[1726571611500,4.30978,2320.3,2320.2,0.0383372]
[1726571612001,8.61956,2320.3,2320.2,0.0383372]
[1726571612380,4.30978,2320.3,2320.2,0.0383372]
[1726571612875,8.61956,2320.3,2320.2,0.0383372]
[1726571613075,4.30978,2320.3,2320.2,0.0383372]
[1726571614027,8.61956,2320.3,2320.2,0.0383372]
[1726571614175,4.30978,2320.3,2320.2,0.0383372]
[1726571615616,9.050538,2320.3,2320.2,0.0383372]
[1726571615974,21.311738,2320.3,2320.2,0.0383372]
[1726571617715,3.0,2320.3,2320.2,0.0383372]
[1726571617915,9.943513,2320.6,2320.3,9.892]
[1726571617916,4.30932,2320.6,2320.3,9.892]
[1726571618217,4.30949,2320.5,2320.3,9.892]
[1726571618420,4.30915,2320.7,2320.3,9.892]
[1726571618725,4.30923,2320.6,2320.3,9.892]
[1726571621522,8.61862,2320.6,2320.3,9.892]
[1726571622383,4.30943,2320.5,2320.3,9.892]
[1726571623634,4.30978,2320.3,2320.2,0.0383372]
[1726571624429,4.3096,2320.4,2320.2,0.0383372]
[1726571624595,3.0,2320.5,2320.2,0.0383372]
[1726571624780,4.30913,2320.7,2320.3,13.16408397]
[1726571625327,4.30913,2320.7,2320.3,9.8161]
[1726571625629,2.26178124,2321.3,2320.9,9.9189]
[1726571625780,4.30821,2321.2,2320.9,9.9189]
[1726571626180,6.7553833,2321.4,2320.9,14.22747]
[1726571626406,4.30797,2321.3,2320.9,9.9189]
[1726571627473,3.0,2321.3,2320.9,9.9189]
[1726571627679,4.30747,2321.6,2320.9,9.9189]
[1726571627923,4.30776,2321.4,2320.9,9.9189]
[1726571628125,4.30793,2321.3,2320.9,9.9189]
[1726571628617,4.30814,2321.2,2320.9,9.9189]
[1726571629037,8.61603,2321.3,2320.9,9.9189]
[1726571629534,4.30793,2321.3,2320.9,9.9189]
[1726571629736,8.61597,2321.3,2320.9,9.9189]
[1726571630202,4.30815,2321.2,2320.9,9.9189]
[1726571630397,8.61599,2321.3,2320.9,9.9189]
[1726571630599,4.30813,2321.2,2320.9,9.9189]
[1726571631512,4.3083,2321.1,2320.9,9.9189]
[1726571631711,4.3083,2321.1,2320.7,9.1972]
[1726571632043,4.30859,2321.0,2320.7,9.1972]
[1726571635969,14.29017,2321.4,2320.7,9.1972]
[1726571635970,9.9824,2321.4,2320.8,3.34798397]
[1726571636268,9.9824,2321.4,2320.9,9.8581]
[1726571636269,4.30803,2321.3,2320.9,9.8581]
[1726571636931,4.30812,2321.2,2320.9,9.8581]
[1726571639461,4.30827,2321.2,2320.9,9.8581]
[1726571640214,4.30845,2321.1,2320.9,9.8581]
[1726571640421,4.30848,2321.0,2320.7,9.5581]
[1726571640657,8.61639,2321.2,2320.7,13.86706]
[1726571640836,4.30832,2321.1,2320.7,9.5581]
[1726571642065,4.30852,2321.0,2320.7,9.5581]
[1726571643578,4.30833,2321.1,2320.7,13.86713]
[1726571644023,4.30817,2321.2,2320.9,9.4634]
[1726571644224,8.61646,2321.2,2320.9,9.4634]
[1726571644438,4.30817,2321.2,2320.9,9.4634]
[1726571644843,8.61638,2321.2,2320.9,9.4634]
[1726571645157,4.30817,2321.2,2320.9,9.4634]
[1726571645939,3.0,2321.3,2320.9,13.77203]
[1726571645940,4.30805,2321.3,2320.9,13.77203]
[1726571646325,4.30763,2321.5,2321.1,4.30829]
[1726571646522,4.30781,2321.4,2321.1,9.8884]
[1726571650065,4.30763,2321.5,2321.1,9.8884]
[1726571650637,4.30775,2321.4,2321.1,9.8884]
[1726571652671,4.30783,2321.4,2321.1,9.8884]
[1726571653023,0.861539,2321.4,2321.1,9.8884]
[1726571653232,4.30838,2321.1,2320.7,4.30896]
[1726571653826,4.30849,2321.0,2320.6,4.30921]
[1726571654038,4.30834,2321.1,2320.7,4.30901]
[1726571654443,4.30834,2321.1,2320.6,8.6183]
[1726571654444,4.30847,2321.1,2320.6,8.6183]
[1726571654650,4.30847,2321.1,2320.7,9.7212]
[1726571654875,4.30849,2321.0,2320.7,9.7212]
[1726571655090,4.30883,2320.9,2320.7,9.7212]
[1726571655445,4.30885,2320.8,2320.7,9.7212]
[1726571657384,8.6177,2320.8,2320.7,9.7212]
[1726571657588,4.30885,2320.8,2320.7,9.7212]
[1726571660449,8.6177,2320.8,2320.7,9.7212]
[1726571660690,4.30911,2320.7,2320.5,9.6735]
[1726571663706,4.30885,2320.8,2320.5,9.6735]
[1726571664475,8.61779,2320.8,2320.5,9.6735]
[1726571664685,4.30885,2320.8,2320.5,9.6735]
[1726571666229,4.30923,2320.6,2320.5,9.6735]
[1726571666372,4.30867,2320.9,2320.2,9.5196372]
[1726571666373,4.30952,2320.5,2320.2,9.5196372]